bitfinex-derivatives/quotes_BNBF0:USTF0_20250608
["timestamp","ask_amount","ask_price","bid_price","bid_amount"]
[1749420493795,1.08270436,654.67,653.73,3.797338]
[1749420493998,1.08270436,654.66,653.73,3.797338]
[1749420494197,1.08270436,654.65,653.72,0.30594138]
[1749420494397,1.08270436,654.64,653.72,0.30594138]
[1749420494597,1.08270436,654.63,653.72,0.30594138]
[1749420494800,1.08270436,654.62,653.72,0.30594138]
[1749420494998,1.08270436,654.61,653.72,0.30594138]
[1749420495198,1.08270436,654.6,653.72,0.30594138]
[1749420495399,1.08270436,654.59,653.72,0.30594138]
[1749420495599,1.08270436,654.58,653.72,0.30594138]
[1749420495800,1.08270436,654.57,653.72,0.30594138]
[1749420495999,1.08270436,654.56,653.72,0.30594138]
[1749420496200,1.08270436,654.55,653.72,0.30594138]
[1749420496397,1.08270436,654.73,653.72,0.30594138]
[1749420496697,1.08270436,654.72,653.72,0.30594138]
[1749420496900,1.08270436,654.71,653.72,0.30594138]
[1749420497102,1.08270436,654.7,653.72,0.30594138]
[1749420497302,1.08270436,654.69,653.72,0.30594138]
[1749420497500,1.08270436,654.68,653.72,0.30594138]
[1749420497700,1.08270436,654.67,653.72,0.30594138]
[1749420497904,1.08270436,654.66,653.72,0.30594138]
[1749420498101,1.08270436,654.65,653.72,0.30594138]
[1749420498301,1.08270436,654.64,653.72,0.30594138]
[1749420498599,1.08270436,654.63,653.72,0.30594138]
[1749420498799,1.08270436,654.62,653.72,0.30594138]
[1749420499002,1.08270436,654.61,653.72,0.30594138]
[1749420499200,1.08270436,654.6,653.72,0.30594138]
[1749420499404,1.08270436,654.59,653.72,0.30594138]
[1749420499605,1.08270436,654.58,653.72,0.30594138]
[1749420499803,1.08270436,654.57,653.72,0.30594138]
[1749420500005,1.08270436,654.56,653.72,0.30594138]
[1749420500205,1.08270436,654.55,653.72,0.30594138]
[1749420500401,1.08270436,654.54,653.72,0.30594138]
[1749420500607,1.08270436,654.53,653.72,0.30594138]
[1749420500905,1.08270436,654.73,653.72,0.30594138]
[1749420501106,1.08270436,654.72,653.72,0.30594138]
[1749420501400,1.08270436,654.71,653.72,0.30594138]
[1749420501603,1.08270436,654.7,653.72,0.30594138]
[1749420501805,1.08270436,654.69,653.72,0.30594138]
[1749420502003,1.08270436,654.68,653.72,0.30594138]
[1749420502205,1.08270436,654.67,653.72,0.30594138]
[1749420502507,1.08270436,654.66,653.72,0.30594138]
[1749420502702,1.08270436,654.65,653.72,0.30594138]
[1749420502906,1.08270436,654.64,653.72,0.30594138]
[1749420503104,1.08270436,654.63,653.72,0.30594138]
[1749420503303,1.08270436,654.62,653.72,0.30594138]
[1749420503601,1.08270436,654.61,653.72,0.30594138]
[1749420503802,1.08270436,654.6,653.72,0.30594138]
[1749420504007,1.08270436,654.59,653.72,0.30594138]
[1749420504307,1.08270436,654.73,653.72,0.30594138]
[1749420504603,1.08270436,654.72,653.72,0.30594138]
[1749420504804,1.13838291,654.62,653.72,0.30594138]
[1749420505008,1.08270436,654.61,653.72,0.30594138]
[1749420505303,1.5236865,654.53,653.72,0.30594138]
[1749420505508,2.28644401,654.66,653.22,0.26600827]
[1749420505509,1.13838291,654.43,653.22,0.26600827]
[1749420505704,1.08270436,654.42,653.22,0.26600827]
[1749420505902,1.13838291,654.28,653.22,0.26600827]
[1749420506103,1.08270436,654.27,653.23,0.30617087]
[1749420506307,1.08270436,654.26,653.23,0.30617087]
[1749420506505,1.08270436,654.25,653.23,0.30617087]
[1749420506705,1.08270436,654.24,653.23,0.30617087]
[1749420506906,1.08270436,654.23,653.23,0.30617087]
[1749420507104,1.08270436,654.22,653.23,0.30617087]
[1749420507309,1.08270436,654.21,653.23,0.30617087]
[1749420507506,1.08270436,654.2,653.23,0.30617087]
[1749420507705,1.08270436,654.19,653.23,0.30617087]
[1749420507905,1.08270436,654.18,653.23,0.30617087]
[1749420508105,1.08270436,654.17,653.23,0.30617087]
[1749420508310,1.08270436,654.16,653.23,0.30617087]
[1749420508506,1.13838291,654.51,653.23,0.30617087]
[1749420508707,1.23754162,654.5,653.23,0.30617087]
[1749420509006,1.23754162,654.49,653.23,0.30617087]
[1749420509207,1.23754162,654.48,653.23,0.30617087]
[1749420509408,1.23754162,654.47,653.23,0.30617087]
[1749420509609,1.23754162,654.46,653.23,0.30617087]
[1749420509807,1.23754162,654.45,653.23,0.30617087]
[1749420510011,1.23754162,654.44,653.23,0.30617087]
[1749420510310,1.23754162,654.43,653.23,0.30617087]
[1749420510508,1.23754162,654.42,653.23,0.30617087]
[1749420510706,1.23754162,654.41,653.23,0.30617087]
[1749420511011,1.23754162,654.68,653.23,0.30617087]
[1749420511208,1.23754162,654.67,653.23,0.30617087]
[1749420511408,1.23754162,654.66,653.23,0.30617087]
[1749420511611,1.23754162,654.65,653.23,0.30617087]
[1749420511812,1.23754162,654.64,653.23,0.30617087]
[1749420512108,1.23754162,654.63,653.23,0.30617087]
[1749420512312,0.26578885,654.99,653.23,0.30617087]
[1749420512313,1.23754162,654.62,653.23,0.30617087]
[1749420512513,1.23754162,654.61,653.23,0.30617087]
[1749420512710,1.23754162,654.6,653.23,0.30617087]
[1749420512911,1.23754162,654.59,653.23,0.30617087]
[1749420513114,1.23754162,654.58,653.23,0.30617087]
[1749420513314,1.23754162,654.57,653.23,0.30617087]
[1749420513514,1.23754162,654.56,653.23,0.30617087]
[1749420513712,1.23754162,654.55,653.23,0.30617087]
[1749420513916,1.23754162,654.73,653.23,0.30617087]
[1749420514115,1.23754162,654.72,653.23,0.30617087]
[1749420514413,1.23754162,654.71,653.23,0.30617087]
[1749420514610,1.23754162,654.7,653.23,0.30617087]
[1749420514816,1.23754162,654.69,653.23,0.30617087]
[1749420515013,1.23754162,654.68,653.23,0.30617087]
[1749420515214,1.23754162,654.67,653.23,0.30617087]
[1749420515517,1.23754162,654.66,653.23,0.30617087]
[1749420515813,1.23754162,654.65,653.23,0.30617087]
[1749420516013,1.23754162,654.64,653.23,0.30617087]
[1749420516212,1.13838291,654.78,653.23,0.30617087]
[1749420516213,1.23754162,654.63,653.23,0.30617087]
[1749420516417,1.23754162,654.62,653.23,0.30617087]
[1749420516615,1.23754162,654.61,653.23,0.30617087]
[1749420516816,1.23754162,654.6,653.23,0.30617087]
[1749420517019,1.23754162,654.73,653.26,3.80295298]
[1749420517221,1.23754162,654.72,653.28,0.30614744]
[1749420517420,1.23754162,654.71,653.28,0.30614744]
[1749420517620,1.23754162,654.7,653.28,0.30614744]
[1749420517918,1.23754162,654.69,653.28,0.30614744]
[1749420518218,1.23754162,654.68,653.28,0.30614744]
[1749420518520,1.23754162,654.67,653.28,4.10910042]
[1749420518721,1.23754162,654.66,653.28,4.10910042]
[1749420519017,1.23754162,654.65,653.28,4.10910042]
[1749420519216,1.23754162,654.73,653.28,0.30614744]
[1749420519420,1.23754162,654.72,653.28,0.30614744]
[1749420519618,1.23754162,654.71,653.28,0.30614744]
[1749420519918,1.23754162,654.7,653.28,0.30614744]
[1749420520221,1.23754162,654.69,653.28,0.30614744]
[1749420520418,1.23754162,654.68,653.28,0.30614744]
[1749420520615,1.23754162,654.67,653.28,0.30614744]
[1749420520817,1.23754162,654.66,653.28,0.30614744]
[1749420521021,1.23754162,654.65,653.28,0.30614744]
[1749420521223,1.23754162,654.73,653.28,0.30614744]
[1749420521421,1.23754162,654.72,653.28,0.30614744]
[1749420521618,1.23754162,654.71,653.28,0.30614744]
[1749420521822,1.23754162,654.7,653.28,0.30614744]
[1749420522023,1.23754162,654.69,653.28,0.30614744]
[1749420522322,1.23754162,654.68,653.28,0.30614744]
[1749420522622,1.23754162,654.67,653.28,0.30614744]
[1749420522819,1.23754162,654.66,653.28,0.30614744]
[1749420523023,1.23754162,654.73,653.28,0.30614744]
[1749420523220,1.16709162,654.72,653.28,0.30614744]
[1749420523421,1.16709162,654.71,653.28,0.30614744]
[1749420523724,1.16709162,654.7,653.28,0.30614744]
[1749420523924,1.16709162,654.69,653.28,0.30614744]
[1749420524122,1.16709162,654.68,653.28,0.30614744]
[1749420524325,1.16709162,654.67,653.28,0.30614744]
[1749420524525,1.16709162,654.85,653.28,0.30614744]
[1749420524724,1.16709162,654.84,653.28,0.30614744]
[1749420524925,1.16709162,654.83,653.28,0.30614744]
[1749420525126,2.30276723,654.82,653.35,3.80295298]
[1749420525325,2.30276723,654.81,653.37,0.30610526]
[1749420525626,1.16709162,654.8,653.37,0.30610526]
[1749420525827,1.16709162,654.79,653.37,0.30610526]
[1749420526028,1.16709162,654.78,653.37,0.30610526]
[1749420526328,1.16709162,654.77,653.37,0.30610526]
[1749420526623,1.16709162,654.76,653.37,0.30610526]
[1749420526827,1.16709162,654.75,653.37,0.30610526]
[1749420527127,1.16709162,654.74,653.37,0.30610526]
[1749420527324,1.16709162,654.73,653.37,0.30610526]
[1749420527524,1.16709162,654.72,653.37,0.30610526]
[1749420527724,1.16709162,654.71,653.37,0.30610526]
[1749420527927,1.16709162,654.7,653.37,0.30610526]
[1749420528125,1.16709162,654.69,653.37,0.30610526]
[1749420528327,1.16709162,654.68,653.37,0.30610526]
[1749420528529,1.16709162,654.67,653.37,0.30610526]
[1749420528725,1.16709162,654.66,653.37,0.30610526]
[1749420528929,1.682,654.74,653.37,0.30610526]
[1749420528930,1.16709162,654.65,653.37,0.30610526]
[1749420529131,1.16709162,654.64,653.37,0.30610526]
[1749420529426,1.16709162,654.63,653.37,0.30610526]
[1749420529628,1.16709162,654.62,653.37,0.30610526]
[1749420529831,1.16709162,654.61,653.37,0.30610526]
[1749420530127,1.16709162,654.6,653.37,0.30610526]
[1749420530332,1.16709162,654.59,653.37,0.30610526]
[1749420530528,1.16709162,654.58,653.37,0.30610526]
[1749420530729,1.16709162,654.57,653.37,0.30610526]
[1749420531027,1.16709162,654.71,653.37,0.30610526]
[1749420531232,1.16709162,654.7,653.37,0.30610526]
[1749420531429,1.16709162,654.69,653.37,0.30610526]
[1749420531626,1.16709162,654.68,653.37,0.30610526]
[1749420531830,1.16709162,654.67,653.37,0.30610526]
[1749420532029,1.16709162,654.66,653.37,0.30610526]
[1749420532228,1.16709162,654.65,653.37,0.30610526]
[1749420532433,1.16709162,654.64,653.37,0.30610526]
[1749420532631,1.16709162,654.63,653.37,0.30610526]
[1749420532833,1.16709162,654.62,653.37,0.30610526]
[1749420533030,1.16709162,654.61,653.37,0.30610526]
[1749420533234,1.16709162,654.6,653.37,0.30610526]
[1749420533433,1.16709162,654.59,653.37,0.30610526]
[1749420533632,1.16709162,654.72,653.37,0.30610526]
[1749420533832,1.16709162,654.71,653.37,0.30610526]
[1749420534035,1.16709162,654.7,653.37,0.30610526]
[1749420534234,1.16709162,654.69,653.37,0.30610526]
[1749420534433,1.16709162,654.68,653.37,0.30610526]
[1749420534634,1.16709162,654.67,653.37,0.30610526]
[1749420534833,1.16709162,654.66,653.37,0.30610526]
[1749420535035,1.16709162,654.65,653.37,0.30610526]
[1749420535235,1.16709162,654.64,653.37,0.30610526]
[1749420535530,1.16709162,654.63,653.37,0.30610526]
[1749420535735,1.16709162,654.62,653.37,0.30610526]
[1749420536035,2.30276723,654.73,653.37,0.30610526]
[1749420536236,1.16709162,654.72,653.37,0.30610526]
[1749420536437,1.16709162,654.71,653.37,0.30610526]
[1749420536735,1.16709162,654.7,653.37,0.30610526]
[1749420536934,1.16709162,654.69,653.37,0.30610526]
[1749420537135,1.16709162,654.68,653.37,0.30610526]
[1749420537337,1.16709162,654.73,653.37,0.30610526]
[1749420537532,1.16709162,654.72,653.37,0.30610526]
[1749420537835,1.16709162,654.71,653.37,0.30610526]
[1749420538134,1.16709162,654.7,653.37,0.30610526]
[1749420538334,1.16709162,654.69,653.37,0.30610526]
[1749420538533,1.16709162,654.68,653.37,0.30610526]
[1749420538834,1.16709162,654.67,653.37,0.30610526]
[1749420539033,1.16709162,654.72,653.37,0.30610526]
[1749420539338,1.16709162,654.71,653.37,0.30610526]
[1749420539538,1.16709162,654.7,653.37,0.30610526]
[1749420539838,1.16709162,654.69,653.37,0.30610526]
[1749420540037,1.16709162,654.68,653.37,0.30610526]
[1749420540333,1.16709162,654.72,653.37,0.30610526]
[1749420540537,1.16709162,654.71,653.37,0.30610526]
[1749420540737,1.16709162,654.7,653.37,0.30610526]
[1749420541037,1.16709162,654.69,653.37,0.30610526]
[1749420541334,1.16709162,654.68,653.37,0.30610526]
[1749420541534,1.16709162,654.72,653.37,0.30610526]
[1749420541734,1.16709162,654.71,653.37,0.30610526]
[1749420541939,1.16709162,654.7,653.37,0.30610526]
[1749420542137,1.16709162,654.69,653.37,0.30610526]
[1749420542337,1.16709162,654.73,653.37,0.30610526]
[1749420542538,1.16709162,654.72,653.37,0.30610526]
[1749420542738,1.16709162,654.71,653.37,0.30610526]
[1749420542934,1.16709162,654.7,653.37,0.30610526]
[1749420543141,1.16709162,654.69,653.37,0.30610526]
[1749420543337,1.16709162,654.73,653.37,0.30610526]
[1749420543538,1.16709162,654.72,653.37,0.30610526]
[1749420543739,1.16709162,654.71,653.37,0.30610526]
[1749420544042,1.16709162,654.7,653.37,0.30610526]
[1749420544240,1.16709162,654.69,653.37,0.30610526]
[1749420544443,1.16709162,654.73,653.37,0.30610526]
[1749420544644,1.16709162,654.72,653.37,0.30610526]
[1749420544843,1.16709162,654.71,653.37,0.30610526]
[1749420545043,1.16709162,654.7,653.37,0.30610526]
[1749420545241,1.16709162,654.73,653.37,0.30610526]
[1749420545441,1.16709162,654.72,653.37,0.30610526]
[1749420545740,1.16709162,654.71,653.37,0.30610526]
[1749420545940,1.16709162,654.73,653.37,0.30610526]
[1749420546142,1.16709162,654.72,653.37,0.30610526]
[1749420546337,1.16709162,654.71,653.37,0.30610526]
[1749420546639,1.16709162,654.7,653.37,0.30610526]
[1749420546843,1.16709162,654.69,653.37,0.30610526]
[1749420547044,1.16709162,654.68,653.37,0.30610526]
[1749420547245,1.16709162,654.67,653.37,0.30610526]
[1749420547542,1.16709162,654.66,653.37,0.30610526]
[1749420547741,1.16709162,654.65,653.37,0.30610526]
[1749420547945,2.30276723,654.69,653.39,3.80295298]
[1749420548141,1.682,654.74,653.39,3.80295298]
[1749420548142,2.30276723,654.68,653.4,0.30609121]
[1749420548446,1.16709162,654.67,653.4,0.30609121]
[1749420548741,1.16709162,654.66,653.4,0.30609121]
[1749420548944,1.16709162,654.65,653.4,0.30609121]
[1749420549145,1.16709162,654.67,653.4,0.30609121]
[1749420549345,1.16709162,654.66,653.4,0.30609121]
[1749420549545,1.16709162,654.67,653.4,0.30609121]
[1749420549841,1.16709162,654.66,653.4,0.30609121]
[1749420550040,1.16709162,654.67,653.4,0.30609121]
[1749420550245,1.16709162,654.66,653.4,0.30609121]
[1749420550542,2.30276723,654.68,653.4,0.30609121]
[1749420550743,1.16709162,654.67,653.4,0.30609121]
[1749420550946,1.682,654.74,653.4,0.30609121]
[1749420550947,1.16709162,654.66,653.4,0.30609121]
[1749420551145,1.16709162,654.65,653.4,0.30609121]
[1749420551344,1.13567561,654.63,653.4,0.30609121]
[1749420551643,1.16709162,654.62,653.4,0.30609121]
[1749420551847,1.16709162,654.61,653.4,0.30609121]
[1749420552049,1.16709162,654.6,653.4,0.30609121]
[1749420552345,1.16709162,654.59,653.4,0.30609121]
[1749420552544,1.16709162,654.58,653.4,0.30609121]
[1749420552744,1.16709162,654.57,653.4,0.30609121]
[1749420552943,1.16709162,654.56,653.4,0.30609121]
[1749420553248,1.16709162,654.55,653.4,0.30609121]
[1749420553445,1.16709162,654.54,653.4,0.30609121]
[1749420553750,1.16709162,654.53,653.4,0.30609121]
[1749420553945,1.16709162,654.52,653.4,0.30609121]
[1749420554149,1.16709162,654.51,653.4,0.30609121]
[1749420554345,1.16709162,654.5,653.4,0.30609121]
[1749420554550,1.16709162,654.49,653.4,0.30609121]
[1749420554750,4.03430598,654.59,653.4,0.30609121]
[1749420554947,4.03430598,654.58,653.4,0.30609121]
[1749420555151,2.80861907,654.57,653.4,0.30609121]
[1749420555447,2.25687114,654.56,653.4,0.30609121]
[1749420555747,2.25672652,654.55,653.4,0.30609121]
[1749420555946,1.16709162,654.54,653.4,0.30609121]
[1749420556146,1.16709162,654.53,653.4,0.30609121]
[1749420556347,1.16709162,654.52,653.4,0.30609121]
[1749420556549,1.16709162,654.51,653.4,0.30609121]
[1749420556847,2.80744487,654.6,653.4,0.30609121]
[1749420557052,4.03157354,654.59,653.4,0.30609121]
[1749420557249,4.03157354,654.58,653.4,0.30609121]
[1749420557452,2.25668935,654.57,653.4,0.30609121]
[1749420557652,2.25668935,654.56,653.4,0.30609121]
[1749420557851,2.25668935,654.55,653.4,0.30609121]
[1749420558048,2.25683417,654.54,653.4,0.30609121]
[1749420558255,1.16709162,654.53,653.4,0.30609121]
[1749420558547,1.16709162,654.52,653.4,0.30609121]
[1749420558749,1.16709162,654.51,653.4,0.30609121]
[1749420558955,1.16709162,654.5,653.4,0.30609121]
[1749420559153,1.16709162,654.49,653.4,0.30609121]
[1749420559451,1.16709162,654.48,653.4,0.30609121]
[1749420559650,1.16709162,654.47,653.4,0.30609121]
[1749420559849,1.16709162,654.46,653.4,0.30609121]
[1749420560048,2.80668992,654.56,653.4,0.30609121]
[1749420560252,1.71748533,654.55,653.4,0.30609121]
[1749420560448,1.16709162,654.54,653.4,0.30609121]
[1749420560648,1.16709162,654.53,653.4,0.30609121]
[1749420560849,1.16709162,654.52,653.4,0.30609121]
[1749420561050,1.16709162,654.51,653.4,0.30609121]
[1749420561250,1.16709162,654.5,653.4,0.30609121]
[1749420561453,1.16709162,654.49,653.4,0.30609121]
[1749420561653,1.16709162,654.48,653.4,0.30609121]
[1749420561856,1.16709162,654.47,653.4,0.30609121]
[1749420562058,1.16709162,654.46,653.4,0.30609121]
[1749420562356,1.16709162,654.45,653.4,0.30609121]
[1749420562655,1.16709162,654.44,653.4,0.30609121]
[1749420562954,1.16709162,654.43,653.4,0.30609121]
[1749420563151,1.16709162,654.42,653.4,0.30609121]
[1749420563349,1.16709162,654.41,653.4,0.30609121]
[1749420563554,1.16709162,654.4,653.4,0.30609121]
[1749420563755,1.16709162,654.39,653.4,0.30609121]
[1749420563954,1.16709162,654.38,653.4,0.30609121]
[1749420564155,2.8616896,654.54,653.4,0.30609121]
[1749420564156,4.02878122,654.53,653.4,0.30609121]
[1749420564355,5.16445683,654.52,653.4,0.30609121]
[1749420564555,4.02458296,654.51,653.4,0.30609121]
[1749420564758,2.93782212,654.5,653.4,0.30609121]
[1749420564953,3.4750225,654.49,653.4,0.30609121]
[1749420565158,4.02390947,654.48,653.4,0.30609121]
[1749420565358,1.13567561,654.45,653.4,0.30609121]
[1749420565657,2.30276723,654.44,653.4,0.30609121]
[1749420565857,4.02361411,654.43,653.4,0.30609121]
[1749420566059,4.02361411,654.42,653.4,0.30609121]
[1749420566260,1.13567561,654.44,653.4,0.30609121]
[1749420566261,4.02194247,654.41,653.4,0.30609121]
[1749420566463,4.02193381,654.4,653.4,0.30609121]
[1749420566756,2.25301685,654.39,653.4,0.30609121]
[1749420566961,2.25301673,654.38,653.4,0.30609121]
[1749420567261,1.16709162,654.37,653.4,0.30609121]
[1749420567561,1.16709162,654.36,653.4,0.30609121]
[1749420567757,1.16709162,654.35,653.4,0.30609121]
[1749420567963,1.16709162,654.34,653.4,0.30609121]
[1749420568158,1.16709162,654.33,653.4,0.30609121]
[1749420568360,1.16709162,654.32,653.4,0.30609121]
[1749420568559,1.16709162,654.31,653.4,0.30609121]
[1749420568759,1.16709162,654.3,653.4,0.30609121]
[1749420569063,1.0719128,654.3,653.4,0.30609121]
[1749420569363,2.15461146,654.3,653.4,0.30609121]
[1749420569564,1.0719128,654.3,653.4,0.30609121]
[1749420570258,2.15461484,654.3,653.4,0.30609121]
[1749420570564,1.0719128,654.3,653.4,0.30609121]
[1749420570763,1.0719128,654.29,653.4,0.30609121]
[1749420571063,1.731,654.31,653.4,0.30609121]
[1749420571064,1.0719128,654.28,653.4,0.30609121]
[1749420571267,1.0719128,654.29,653.4,0.30609121]
[1749420571464,1.0719128,654.28,653.4,0.30609121]
[1749420571659,1.0719128,654.29,653.4,0.30609121]
[1749420571864,1.0719128,654.28,653.4,0.30609121]
[1749420572164,1.0719128,654.27,653.4,0.30609121]
[1749420572359,1.0719128,654.26,653.4,0.30609121]
[1749420572564,1.0719128,654.25,653.4,0.30609121]
[1749420572764,1.0719128,654.24,653.4,0.30609121]
[1749420572967,1.0719128,654.23,653.4,0.30609121]
[1749420573161,3.36717561,654.27,653.4,0.30609121]
[1749420573360,2.15405675,654.26,653.4,0.30609121]
[1749420573561,2.15405675,654.25,653.4,0.30609121]
[1749420573861,2.14657972,654.24,653.4,0.30609121]
[1749420574162,2.14658123,654.23,653.4,0.30609121]
[1749420574365,2.1465676,654.22,653.4,0.30609121]
[1749420574661,2.1465676,654.21,653.4,0.30609121]
[1749420574867,2.1465676,654.2,653.4,0.30609121]
[1749420575067,2.1465676,654.19,653.4,0.30609121]
[1749420575362,2.1465676,654.18,653.4,0.30609121]
[1749420575562,2.14680774,654.17,653.4,0.30609121]
[1749420575761,2.14680774,654.16,653.4,0.30609121]
[1749420575965,1.0719128,654.15,653.4,0.30609121]
[1749420576266,3.35481422,654.3,653.4,0.30609121]
[1749420576466,3.35481422,654.29,653.4,0.30609121]
[1749420576667,3.35481422,654.28,653.4,0.30609121]
[1749420576967,3.35484637,654.27,652.79,0.26623722]
[1749420577267,3.35484637,654.26,652.81,0.30636785]
[1749420577464,0.26622907,653.91,652.81,0.30636785]
[1749420590675,0.26622907,653.91,652.85,3.80295298]
[1749420590975,0.26622907,653.91,652.87,0.3063397]
[1749420591271,0.26622907,653.91,653.31,2.2737665]
[1749420592076,0.26622907,653.91,653.32,2.2737665]
[1749420592673,0.26622907,653.91,653.33,2.2737665]
[1749420593576,0.26622907,653.91,653.34,2.2737665]
[1749420594677,0.26622907,653.91,653.35,2.2737665]
[1749420594877,0.26622907,653.91,653.33,2.2737665]
[1749420595376,0.26622907,653.91,653.34,2.2737665]
[1749420595573,0.26622907,653.91,653.35,2.2737665]
[1749420595977,0.26622907,653.91,653.37,2.2737665]
[1749420596275,0.26622907,653.91,653.38,2.2737665]
[1749420596473,0.26622907,653.91,653.39,2.2737665]
[1749420596676,0.26622907,653.91,653.4,2.2737665]
[1749420597078,0.26622907,653.91,653.38,2.2737665]
[1749420597379,0.26622907,653.91,653.26,2.2737665]
[1749420597676,0.26622907,653.91,653.29,2.2737665]
[1749420598474,0.26622907,653.91,653.32,2.2737665]
[1749420599775,0.26622907,653.91,653.33,2.2737665]
[1749420601075,0.26622907,653.91,653.34,2.2737665]
[1749420601984,0.26622907,653.91,653.35,2.2737665]
[1749420602481,0.26622907,653.91,653.36,2.2737665]
[1749420603480,0.26622907,653.91,653.37,2.2737665]
[1749420604186,0.26622907,653.91,653.36,2.2737665]
[1749420604384,0.26622907,653.91,653.37,2.2737665]
[1749420604684,0.26622907,653.91,653.39,2.2737665]
[1749420605485,0.26622907,653.91,653.4,2.2737665]
[1749420605686,0.26622907,653.91,653.41,2.2737665]
[1749420605988,0.26622907,653.91,653.4,2.2737665]
[1749420606582,0.26622907,653.91,653.41,2.2737665]
[1749420606785,0.26622907,653.91,653.42,2.2737665]
[1749420607182,0.26622907,653.91,653.51,2.2737665]
[1749420607685,0.26622907,653.91,653.52,2.2737665]
[1749420608485,0.26622907,653.91,653.53,2.2737665]
[1749420608787,0.26622907,653.91,653.54,2.2737665]
[1749420608990,0.26622907,653.91,653.53,2.2737665]
[1749420609489,0.26622907,653.91,653.54,2.2737665]
[1749420610586,0.26622907,653.91,653.55,2.2737665]
[1749420610886,0.26622907,653.91,653.47,2.2737665]
[1749420611585,0.26622907,653.91,653.48,2.2737665]
[1749420613587,0.26622907,653.91,653.49,2.2737665]
[1749420615889,0.26622907,653.91,653.51,2.2737665]
[1749420616388,0.26622907,653.91,653.52,2.2737665]
[1749420617189,0.26622907,653.91,653.51,2.2737665]
[1749420617389,0.26622907,653.91,653.52,2.2737665]
[1749420620392,0.26622907,653.91,653.53,2.2737665]
[1749420620793,0.26622907,653.91,653.63,2.2737665]
[1749420621597,0.26622907,653.91,653.64,2.2737665]
[1749420621792,0.26622907,653.91,653.63,2.2737665]
[1749420622398,0.26622907,653.91,653.64,2.2737665]
[1749420622895,0.26622907,653.91,653.63,2.2737665]
[1749420623495,0.26622907,653.91,653.64,2.2737665]
[1749420627106,0.26622907,653.91,653.65,2.2737665]
[1749420627606,0.26622907,653.91,653.63,2.2737665]
[1749420629207,0.26622907,653.91,652.91,5.32510915]
[1749420629208,0.26622907,653.91,653.64,2.2737665]
[1749420631806,0.26622907,653.91,653.65,2.2737665]
[1749420632603,1.428,653.9,653.65,2.2737665]
[1749420633403,1.428,653.9,653.66,2.2737665]
[1749420633608,1.428,653.9,653.65,2.2737665]
[1749420634609,1.428,653.9,653.66,2.2737665]
[1749420635510,1.428,653.9,653.58,2.2737665]
[1749420638209,1.428,653.9,653.57,2.2737665]
[1749420640714,1.428,653.9,653.54,2.2737665]
[1749420640914,1.428,653.9,653.42,2.2737665]
[1749420641113,1.428,653.9,653.43,2.2737665]
[1749420641315,1.428,653.9,653.42,2.2737665]
[1749420641517,1.428,653.9,653.43,2.2737665]
[1749420641717,1.428,653.9,653.66,1.52691361]
[1749420642214,1.428,653.9,653.84,1.52691361]
[1749420642714,1.428,653.9,653.85,1.52691361]
[1749420643121,1.428,653.9,653.86,1.52691361]
[1749420643317,1.428,653.9,653.85,1.52691361]
[1749420643818,1.428,653.9,653.84,1.52691361]
[1749420644016,1.428,653.9,653.88,1.52691361]
[1749420644218,1.428,653.9,653.87,1.52691361]
[1749420645016,1.428,653.9,653.78,2.2737665]
[1749420645226,1.428,653.9,653.86,2.2737665]
[1749420645821,1.428,653.9,653.87,2.2737665]
[1749420646222,1.428,653.9,653.86,2.2737665]
[1749420646624,1.428,653.9,653.87,2.2737665]
[1749420647426,1.428,653.9,653.86,2.2737665]
[1749420648323,1.428,653.9,653.85,2.2737665]
[1749420648629,1.428,653.9,653.78,2.2737665]
[1749420649624,1.428,653.9,653.81,2.2737665]
[1749420650423,1.428,653.9,653.8,2.2737665]
[1749420650824,1.428,653.9,653.86,2.2737665]
[1749420651223,1.428,653.9,653.84,2.2737665]
[1749420652326,1.428,653.9,653.83,2.2737665]
[1749420652627,1.428,653.9,653.86,1.51994256]
[1749420652923,1.428,653.9,653.73,2.2737665]
[1749420653124,1.428,653.9,653.74,2.2737665]
[1749420653325,1.428,653.9,653.88,1.51946042]
[1749420653526,1.428,653.9,653.87,1.51946042]
[1749420653926,1.428,653.9,653.85,1.51946042]
[1749420654128,1.428,653.9,653.84,1.51946042]
[1749420654328,1.428,653.9,653.8,1.51946042]
[1749420656228,1.428,653.9,653.79,1.51946042]
[1749420656530,1.428,653.9,653.86,1.51946042]
[1749420657228,1.428,653.9,653.87,1.51946042]
[1749420657526,1.428,653.9,653.86,1.51946042]
[1749420658429,1.428,653.9,653.75,1.51946042]
[1749420658629,1.428,653.9,653.6,1.51946042]
[1749420658829,1.428,653.9,652.87,0.3063397]
[1749420658830,1.428,653.9,653.54,1.51946042]
[1749420659136,1.428,653.9,653.53,1.51946042]
[1749420659534,1.428,653.9,653.51,1.51946042]
[1749420660435,1.428,653.9,653.5,1.51946042]
[1749420660629,1.428,653.9,652.87,0.3063397]
[1749420660630,1.428,653.9,653.52,1.51946042]
[1749420660831,1.428,653.9,653.51,1.51946042]
[1749420663936,1.428,653.9,653.5,1.51946042]
[1749420667238,1.428,653.9,653.51,1.51946042]
[1749420668433,1.428,653.9,653.54,1.51946042]